bitfinex-derivatives/quotes_SOLF0:USTF0_20250606
["timestamp","ask_amount","ask_price","bid_price","bid_amount"]
[1749192541380,34.02,147.24,147.2,4.85110752]
[1749192541590,34.02,147.27,147.22,4.85110752]
[1749192541893,5.73902322,147.26,147.22,4.85110752]
[1749192542086,40.8071,147.27,147.23,6.7885]
[1749192542481,0.0492542,147.26,147.24,0.04292992]
[1749192542685,0.0492542,147.26,147.24,4.89403744]
[1749192543093,0.0492542,147.26,147.25,6.788]
[1749192544296,34.02,147.3,147.27,6.7868]
[1749192544496,40.8057,147.3,147.28,4.85110752]
[1749192544698,34.02,147.3,147.28,4.85110752]
[1749192545097,36.141,147.33,147.28,4.85110752]
[1749192545298,13.30388999,147.32,147.29,0.04782476]
[1749192545497,4.74604725,147.31,147.29,0.04782476]
[1749192545995,0.05223167,147.32,147.29,0.04782476]
[1749192546401,0.05223167,147.32,147.3,4.85110752]
[1749192547597,0.05223167,147.32,147.29,0.04782476]
[1749192547799,6.7856,147.31,147.29,0.04782476]
[1749192548695,6.83703167,147.32,147.29,0.04782476]
[1749192550402,6.7856,147.3,147.29,0.04782476]
[1749192556111,8.9105,147.31,147.29,0.04782476]
[1749192561006,0.05223167,147.32,147.29,0.04782476]
[1749192561808,6.83703167,147.32,147.29,0.04782476]
[1749192562016,0.05223167,147.32,147.29,0.04782476]
[1749192562909,6.83713167,147.32,147.29,0.04782476]
[1749192566511,6.7852,147.31,147.29,0.04782476]
[1749192566814,0.05223167,147.32,147.29,0.04782476]
[1749192567013,6.83713167,147.32,147.29,0.04782476]
[1749192574916,4.85110752,147.31,147.29,0.04782476]
[1749192575714,6.7856,147.3,147.29,0.04782476]
[1749192578921,11.63660752,147.31,147.29,0.04782476]
[1749192583723,6.7855,147.31,147.29,0.04782476]
[1749192584529,6.7856,147.3,147.29,0.04782476]
[1749192584829,12.55666023,147.3,147.29,0.04782476]
[1749192585128,4.66616769,147.3,147.29,0.04782476]
[1749192585428,13.24737024,147.3,147.29,0.04782476]
[1749192585626,13.25637442,147.3,147.29,0.04782476]
[1749192585828,13.25640146,147.3,147.29,0.04782476]
[1749192586022,13.2709299,147.3,147.29,0.04782476]
[1749192586217,13.27080208,147.3,147.29,0.04782476]
[1749192586426,8.59018914,147.3,147.29,0.04782476]
[1749192586625,13.27079838,147.3,147.29,0.04782476]
[1749192586923,15.37582709,147.3,147.29,0.04782476]
[1749192587123,12.55628238,147.3,147.29,0.04782476]
[1749192589129,20.04569034,147.3,147.29,0.04782476]
[1749192589531,20.0480092,147.3,147.29,0.04782476]
[1749192590231,20.0480555,147.3,147.29,0.04782476]
[1749192590427,12.55628238,147.3,147.29,0.04782476]
[1749192590627,9.60564288,147.3,147.29,0.04782476]
[1749192590931,20.04693759,147.3,147.29,0.04782476]
[1749192591632,20.04712963,147.3,147.29,0.04782476]
[1749192591928,13.26203197,147.3,147.29,0.04782476]
[1749192592128,10.44140042,147.3,147.29,0.04782476]
[1749192592426,4.66900134,147.3,147.29,0.04782476]
[1749192592636,7.49167824,147.3,147.29,0.04782476]
[1749192592831,7.49130006,147.3,147.29,0.04782476]
[1749192593223,7.49316613,147.3,147.29,0.04782476]
[1749192593828,4.67252006,147.3,147.29,0.04782476]
[1749192594035,7.49339482,147.3,147.29,0.04782476]
[1749192594232,4.67276224,147.3,147.29,6.83392476]
[1749192594427,4.67310422,147.3,147.29,6.83392476]
[1749192594632,0.05223167,147.32,147.29,0.04782476]
[1749192594833,7.49655539,147.31,147.29,0.04782476]
[1749192595034,6.83693167,147.32,147.29,0.04782476]
[1749192595340,7.49328074,147.31,147.29,0.04782476]
[1749192595534,6.83693167,147.32,147.29,0.04782476]
[1749192595728,7.49305097,147.31,147.29,6.83392476]
[1749192595938,6.83693167,147.32,147.29,6.83392476]
[1749192596231,2.82052388,147.31,147.29,6.83392476]
[1749192596436,6.83693167,147.32,147.29,6.83392476]
[1749192596633,7.49340544,147.31,147.29,0.04782476]
[1749192596835,6.83693167,147.32,147.29,0.04782476]
[1749192597036,7.49234452,147.31,147.29,0.04782476]
[1749192597236,6.83693167,147.32,147.29,0.04782476]
[1749192597433,7.50325541,147.31,147.29,0.04782476]
[1749192597632,6.83693167,147.32,147.29,0.04782476]
[1749192597835,7.50325137,147.31,147.29,0.04782476]
[1749192598033,4.68252114,147.3,147.29,0.04782476]
[1749192598638,6.83693167,147.32,147.29,0.04782476]
[1749192598838,7.50658026,147.31,147.29,0.04782476]
[1749192599140,6.83693167,147.32,147.29,0.04782476]
[1749192599338,2.82197199,147.31,147.29,0.04782476]
[1749192599533,4.68705908,147.3,147.29,0.04782476]
[1749192599737,4.68705907,147.3,147.29,0.04782476]
[1749192599937,4.68714685,147.3,147.29,0.04782476]
[1749192600132,18.1309215,147.3,147.18,429.96088941]
[1749192600338,4.84116044,147.25,147.18,432.20486044]
[1749192600530,4.84118424,147.25,147.18,432.20488424]
[1749192600736,11.62928424,147.25,147.2,6.7898]
[1749192601135,0.04301682,147.24,147.23,9.88586364]
[1749192601330,0.04761361,147.25,147.23,3.09716364]
[1749192601538,0.04761361,147.25,147.24,3.09716364]
[1749192602136,0.04761361,147.25,147.23,3.09716364]
[1749192602640,0.04761361,147.25,147.23,9.88576364]
[1749192603242,0.04761361,147.25,147.23,6.7886]
[1749192605247,0.04761361,147.25,147.24,6.7883]
[1749192611642,2.80908567,147.28,147.27,6.7864]
[1749192611852,10.60574405,147.31,147.27,6.7864]
[1749192612049,4.66871149,147.3,147.27,6.7864]
[1749192612251,7.47767958,147.29,147.26,40.7273]
[1749192612451,4.83887872,147.31,147.26,40.7273]
[1749192612746,7.52317962,147.3,147.27,0.04630898]
[1749192612952,7.47972843,147.29,147.27,0.04630898]
[1749192613149,0.0454311,147.3,147.27,0.04630898]
[1749192613347,7.47954287,147.29,147.27,0.04630898]
[1749192613646,6.8312311,147.3,147.27,0.04630898]
[1749192613847,4.66939425,147.29,147.27,0.04630898]
[1749192614148,6.8312311,147.3,147.27,0.04630898]
[1749192614344,6.8312311,147.3,147.27,6.83310898]
[1749192614745,4.6691907,147.29,147.27,6.83310898]
[1749192614951,0.0454311,147.3,147.27,6.83310898]
[1749192615147,10.6057094,147.29,147.27,0.04630898]
[1749192615347,6.7874,147.26,147.21,33.94]
[1749192615542,11.62627872,147.26,147.21,33.94]
[1749192615947,6.7878,147.25,147.22,6.7889]
[1749192616252,6.83513942,147.25,147.22,6.8405541]
[1749192617047,6.83513942,147.25,147.22,0.0516541]
[1749192617248,6.7885,147.24,147.22,0.0516541]
[1749192617953,6.83523942,147.25,147.22,0.0516541]
[1749192618352,0.04733942,147.25,147.22,0.0516541]
[1749192619054,0.04733942,147.25,147.22,6.8403541]
[1749192622253,6.83523942,147.25,147.22,0.0516541]
[1749192623158,6.83523942,147.25,147.22,6.8408541]
[1749192623559,6.83523942,147.25,147.23,33.92]
[1749192623759,0.04733942,147.25,147.23,33.92]
[1749192624359,6.83543942,147.25,147.23,33.92]
[1749192627459,0.04733942,147.25,147.23,38.75887872]
[1749192627767,5.76023184,147.32,147.28,6.7863]
[1749192628065,5.76023184,147.32,147.28,40.7063]
[1749192628259,12.54513184,147.32,147.28,40.7063]
[1749192628460,6.7849,147.32,147.28,40.7063]
[1749192628662,0.0436915,147.31,147.29,0.04288035]
[1749192628864,0.0436915,147.31,147.29,6.82888035]
[1749192632063,6.8288915,147.31,147.29,0.04288035]
[1749192632662,4.6738949,147.3,147.29,0.04288035]
[1749192633064,6.8288915,147.31,147.29,0.04288035]
[1749192633264,7.49311058,147.3,147.29,0.04288035]
[1749192633465,2.80770922,147.3,147.29,0.04288035]
[1749192633770,7.4929402,147.3,147.29,0.04288035]
[1749192633966,2.80741342,147.3,147.29,0.04288035]
[1749192634166,14.27785583,147.3,147.29,0.04288035]
[1749192634370,4.68499476,147.3,147.29,0.04288035]
[1749192634565,0.0436915,147.31,147.29,0.04288035]
[1749192635867,0.0436915,147.31,147.29,6.82878035]
[1749192637368,0.0436915,147.31,147.29,0.04288035]
[1749192639277,4.68806023,147.3,147.29,0.04288035]
[1749192639469,4.68803322,147.3,147.29,0.04288035]
[1749192639671,4.68803309,147.3,147.29,0.04288035]
[1749192639869,0.0436915,147.31,147.29,0.04288035]
[1749192642171,4.68836769,147.3,147.29,0.04288035]
[1749192642475,0.0436915,147.31,147.29,0.04288035]
[1749192642875,6.8287915,147.31,147.29,0.04288035]
[1749192646874,0.0436915,147.31,147.29,0.04288035]
[1749192647876,0.0436915,147.31,147.29,6.82878035]
[1749192648274,6.7855,147.3,147.29,0.04288035]
[1749192648476,13.25627921,147.3,147.24,33.9]
[1749192648680,4.83887872,147.28,147.24,33.9]
[1749192649381,0.04703579,147.27,147.25,0.04862299]
[1749192650686,6.83393579,147.27,147.25,0.04862299]
[1749192652379,0.04703579,147.27,147.25,0.04862299]
[1749192652583,0.04703579,147.27,147.25,4.88750171]
[1749192653079,0.04703579,147.27,147.26,6.7874]
[1749192653473,0.04703579,147.27,147.25,0.04862299]
[1749192653878,0.04703579,147.27,147.25,6.83612299]
[1749192654978,0.04703579,147.27,147.26,6.7874]
[1749192662787,0.04703579,147.27,147.25,6.83612299]
[1749192663393,0.04703579,147.27,147.26,6.7874]
[1749192663893,7.5133443,147.27,147.25,0.04862299]
[1749192664093,19.09253239,147.26,147.25,0.04862299]
[1749192664293,9.50294974,147.26,147.21,33.9]
[1749192664496,4.83887872,147.26,147.21,33.9]
[1749192664693,2.80120268,147.25,147.21,33.9]
[1749192664988,4.83887872,147.26,147.21,33.9]
[1749192665195,2.85117202,147.25,147.22,0.04635626]
[1749192665395,0.05022763,147.25,147.22,0.04635626]
[1749192665895,6.83822763,147.25,147.22,6.83525626]
[1749192667901,6.83822763,147.25,147.22,0.04635626]
[1749192668395,6.7884,147.24,147.22,0.04635626]
[1749192669695,11.67700635,147.25,147.22,0.04635626]
[1749192670601,6.7883,147.24,147.22,0.04635626]
[1749192670805,4.88910635,147.25,147.22,0.04635626]
[1749192671601,11.67720635,147.25,147.22,0.04635626]
[1749192673392,11.67720635,147.25,147.22,6.83555626]
[1749192674001,6.83832763,147.25,147.22,6.83555626]
[1749192674405,0.05022763,147.25,147.22,0.04635626]
[1749192675302,0.05022763,147.25,147.23,6.7884]
[1749192676599,6.83812763,147.25,147.22,0.04635626]
[1749192677604,6.7883,147.24,147.22,0.04635626]
[1749192678904,11.67710635,147.25,147.22,0.04635626]
[1749192681404,6.7883,147.24,147.22,0.04635626]
[1749192684202,4.88910635,147.25,147.22,0.04635626]
[1749192684510,6.7887,147.23,147.22,0.04635626]
[1749192688414,11.62757872,147.23,147.22,0.04635626]
[1749192688613,11.62757872,147.23,147.17,33.88]
[1749192688614,6.7896,147.22,147.17,33.88]
[1749192689609,0.04525194,147.21,147.18,6.83897292]
[1749192689815,6.83495194,147.21,147.18,6.83897292]
[1749192691219,0.04525194,147.21,147.18,6.83897292]
[1749192692221,6.83515194,147.21,147.18,6.83897292]
[1749192693315,6.7904,147.2,147.18,0.04817292]
[1749192693510,9.89023547,147.2,147.18,0.04817292]
[1749192695318,6.7904,147.2,147.18,0.04817292]
[1749192698625,6.7906,147.19,147.18,0.04817292]
[1749192699523,6.7903,147.2,147.18,0.04817292]
[1749192699727,0.04525194,147.21,147.18,0.04817292]
[1749192701033,6.83505194,147.21,147.18,0.04817292]
[1749192701434,6.83505194,147.21,147.18,6.83897292]
[1749192704140,0.04525194,147.21,147.19,6.7905]
[1749192704635,0.04525194,147.21,147.18,0.04817292]
[1749192705238,0.04525194,147.21,147.19,6.7902]
[1749192706337,0.04525194,147.21,147.2,6.7901]
[1749192717151,0.04525194,147.21,147.2,9.88831123]
[1749192720454,0.04525194,147.21,147.2,6.7901]
[1749192720753,0.04525194,147.21,147.2,9.88831123]
[1749192722650,3.09821123,147.25,147.23,6.7887]
[1749192722852,4.91990548,147.24,147.23,6.7887]
[1749192723053,4.91990764,147.24,147.23,6.7887]
[1749192723356,7.91519926,147.24,147.23,6.7887]
[1749192723659,7.91519396,147.24,147.23,6.7887]
[1749192724157,7.91417988,147.24,147.23,6.7887]
[1749192724451,7.91417988,147.24,147.22,9.93435362]
[1749192724649,3.1421878,147.25,147.22,9.93435362]
[1749192724952,4.91883692,147.24,147.22,9.93435362]
[1749192725153,3.1421878,147.25,147.22,9.93435362]
[1749192725346,7.91423049,147.24,147.22,9.93435362]
[1749192725550,3.1421878,147.25,147.22,6.83614239]
[1749192725852,7.91007327,147.24,147.22,9.93435362]
[1749192726151,3.1421878,147.25,147.22,9.93435362]
[1749192726349,7.91012352,147.24,147.22,9.93435362]
[1749192726549,3.1421878,147.25,147.22,9.93435362]
[1749192726745,7.91015611,147.24,147.22,9.93435362]
[1749192726950,3.1421878,147.25,147.22,9.93435362]
[1749192727149,7.9101062,147.24,147.22,9.93435362]
[1749192727350,3.1421878,147.25,147.22,9.93435362]
[1749192727554,7.90849549,147.24,147.22,6.83614239]
[1749192727754,3.1421878,147.25,147.22,6.83614239]
[1749192727955,7.90854859,147.24,147.22,6.83614239]
[1749192728155,3.1421878,147.25,147.22,6.83614239]
[1749192728355,2.99482767,147.24,147.22,6.83614239]
[1749192728562,11.0069906,147.23,147.22,0.04714239]
[1749192728755,8.01194616,147.23,147.22,0.04714239]
[1749192729056,7.90877961,147.23,147.22,0.04714239]
[1749192729453,9.88671123,147.24,147.22,0.04714239]
[1749192729653,2.99507326,147.23,147.22,0.04714239]
[1749192729952,4.9136816,147.23,147.22,0.04714239]
[1749192730461,3.09821123,147.24,147.22,0.04714239]
[1749192730656,7.90865397,147.23,147.22,0.04714239]
[1749192730858,7.90830998,147.23,147.22,0.04714239]
[1749192731554,7.90885835,147.23,147.22,0.04714239]
[1749192731757,7.90886431,147.23,147.22,0.04714239]
[1749192731954,4.91402772,147.23,147.22,0.04714239]
[1749192732457,3.09821123,147.24,147.22,0.04714239]
[1749192733053,2.94330735,147.23,147.22,0.04714239]
[1749192733258,3.09821123,147.24,147.22,0.04714239]
[1749192733451,4.96900016,147.23,147.22,0.04714239]
[1749192733651,7.91237122,147.23,147.22,0.04714239]
[1749192734557,7.93244492,147.23,147.22,0.04714239]
[1749192734955,4.98907241,147.23,147.22,6.83634239]
[1749192735256,4.989067,147.23,147.22,0.04714239]
[1749192735460,3.1421878,147.25,147.22,6.83594239]
[1749192735651,7.93424301,147.24,147.22,6.83594239]
[1749192735845,4.98906703,147.23,147.22,6.83594239]
[1749192736051,3.1421878,147.25,147.22,6.83594239]
[1749192736352,7.92630873,147.24,147.22,6.83594239]
[1749192736554,3.1421878,147.25,147.22,6.83594239]
[1749192736753,4.79453551,147.24,147.22,6.83594239]
[1749192736962,3.1421878,147.25,147.22,6.83594239]
[1749192737258,4.79453984,147.24,147.22,6.83594239]
[1749192737460,3.1421878,147.25,147.22,6.83594239]
[1749192737663,7.72872604,147.24,147.22,6.83594239]
[1749192737860,3.1421878,147.25,147.22,6.83594239]
[1749192738056,7.72285414,147.24,147.22,6.83594239]
[1749192738261,3.1421878,147.25,147.22,6.83594239]
[1749192738559,4.78354318,147.24,147.22,6.83594239]
[1749192738859,3.1421878,147.25,147.22,6.83594239]
[1749192739060,7.72285414,147.24,147.22,6.83594239]
[1749192739262,3.1421878,147.25,147.23,6.7885]
[1749192739559,0.04397657,147.25,147.23,6.7885]
[1749192739765,0.04397657,147.25,147.24,9.88651123]
[1749192740061,0.04397657,147.25,147.24,43.74651123]
[1749192740255,2.1121,147.32,147.24,36.95821123]
[1749192740451,2.93934548,147.31,147.28,3.09821123]
[1749192740665,4.78005665,147.3,147.29,3.09821123]
[1749192740958,3.09821123,147.34,147.29,3.09821123]
[1749192741161,7.76491581,147.33,147.3,3.14791554]
[1749192741361,7.71871054,147.32,147.3,3.14791554]
[1749192741564,0.04620527,147.33,147.3,3.14791554]
[1749192741858,0.04620527,147.33,147.31,6.7848]
[1749192742054,4.7489799,147.32,147.31,6.7848]
[1749192742255,0.04620527,147.33,147.31,6.7848]
[1749192742460,4.74897968,147.32,147.31,6.7848]
[1749192743061,0.04620527,147.33,147.31,6.7848]
[1749192743263,0.04620527,147.33,147.32,6.7846]
[1749192743961,40.87620312,147.4,147.35,6.7832]
[1749192744156,7.56009287,147.39,147.35,6.7832]
[1749192744358,7.56009192,147.38,147.35,6.7832]
[1749192744660,40.87620312,147.4,147.35,6.7832]
[1749192744865,7.61045317,147.39,147.36,0.05133608]
[1749192745060,4.74203774,147.38,147.36,0.05133608]
[1749192745261,0.05050438,147.39,147.36,0.05133608]
[1749192745462,6.7818,147.38,147.36,0.05133608]
[1749192745961,9.62717812,147.38,147.36,0.05133608]
[1749192746168,6.7818,147.38,147.36,0.05133608]
[1749192751567,6.7823,147.37,147.36,0.05133608]
[1749192752763,6.7823,147.37,147.19,30.43871421]
[1749192752764,6.78,147.37,147.19,13.5805]
[1749192752965,4.83490312,147.34,147.25,2.1057]
[1749192753172,4.83490312,147.34,147.26,4.83490312]
[1749192753861,0.05086072,147.31,147.29,0.05165158]
[1749192755767,6.83596072,147.31,147.29,0.05165158]
[1749192756363,11.62040312,147.3,147.17,113.22048836]
[1749192756563,11.62040312,147.3,147.23,4.83490312]
[1749192756867,4.83490312,147.3,147.23,38.65490312]
[1749192757066,11.62060312,147.3,147.25,6.7875]
[1749192757566,0.04823978,147.29,147.26,0.05070882]
[1749192757866,0.04823978,147.29,147.26,6.83790882]
[1749192763866,6.83433978,147.29,147.26,6.83790882]
[1749192764671,0.04823978,147.29,147.26,6.83790882]
[1749192768266,6.83423978,147.29,147.26,6.83790882]
[1749192768672,6.83423978,147.29,147.26,0.05070882]
[1749192769774,6.83423978,147.29,147.26,6.83800882]
[1749192775985,4.83490312,147.28,147.26,6.83800882]
[1749192777185,3.09672363,147.27,147.26,6.83800882]
[1749192781886,0.04823978,147.29,147.26,6.83800882]
[1749192782184,3.09672363,147.27,147.26,6.83800882]
[1749192784089,3.09672363,147.27,147.26,0.05070882]
[1749192785190,9.88362363,147.27,147.26,0.05070882]
[1749192785591,3.09672363,147.27,147.26,0.05070882]
[1749192786092,6.7866,147.28,147.26,0.05070882]
[1749192786288,3.09672363,147.27,147.26,0.05070882]
[1749192790697,3.09672363,147.27,147.26,6.83810882]
[1749192791198,3.09672363,147.27,147.26,0.05070882]
[1749192792800,3.09672363,147.27,147.26,6.83810882]
[1749192792996,3.09672363,147.27,147.26,0.05070882]
[1749192793302,3.09672363,147.27,147.26,6.83770882]
[1749192795104,7.8484866,147.27,147.26,6.83770882]
[1749192795300,3.09672363,147.27,147.26,6.83770882]
[1749192795702,7.84848485,147.27,147.26,6.83770882]
[1749192795904,7.84848478,147.27,147.26,6.83770882]
[1749192796101,7.84848659,147.27,147.26,6.83770882]
[1749192796404,3.09672363,147.27,147.26,6.83770882]
[1749192796702,7.85421404,147.27,147.26,6.83770882]
[1749192797205,7.85421458,147.27,147.26,6.83770882]
[1749192797404,3.09672363,147.27,147.26,6.83770882]
[1749192797702,7.85421405,147.27,147.26,6.83770882]
[1749192797904,7.85547528,147.27,147.26,6.83770882]
[1749192798501,3.09672363,147.27,147.26,6.83770882]
[1749192798903,7.85547466,147.27,147.26,6.83770882]
[1749192799302,7.85547405,147.27,147.26,6.83770882]
[1749192799507,0.04823978,147.29,147.26,6.83770882]
[1749192799711,3.09672363,147.27,147.26,6.83770882]
[1749192800002,7.85585285,147.27,147.26,6.83770882]
[1749192800209,10.69703546,147.27,147.26,6.83770882]
[1749192800404,7.85586023,147.27,147.26,6.83770882]
[1749192801006,7.85585626,147.27,147.26,6.83770882]
[1749192801204,3.09672363,147.27,147.26,6.83770882]
[1749192801404,7.85604273,147.27,147.26,6.83770882]
[1749192801808,10.69736684,147.27,147.26,6.83770882]
[1749192802104,3.09672363,147.28,147.26,6.83770882]
[1749192802909,3.09672363,147.28,147.27,6.7869]
[1749192803108,10.69718093,147.28,147.27,6.7869]
[1749192803309,5.93787466,147.28,147.27,6.7869]
[1749192803505,7.85602419,147.28,147.27,6.7869]
[1749192803710,10.699336,147.28,147.27,6.7869]
[1749192804909,5.93789059,147.28,147.27,6.7869]
[1749192805103,10.69000704,147.28,147.27,6.7869]
[1749192805313,7.84884008,147.28,147.27,6.7869]
[1749192805507,7.84877574,147.28,147.27,6.7869]
[1749192805704,3.09672363,147.28,147.27,6.7869]
[1749192805904,7.84878085,147.28,147.27,6.7869]
[1749192806107,10.6929088,147.28,147.27,6.7869]
[1749192806309,10.69309343,147.28,147.27,6.7869]
[1749192806511,5.94103613,147.28,147.27,6.7869]
[1749192806706,3.09672363,147.28,147.27,6.7869]
[1749192807410,10.6983993,147.28,147.27,6.7869]
[1749192808314,7.6101219,147.28,147.27,6.7869]
[1749192808513,7.8625969,147.28,147.27,6.7869]
[1749192808716,7.86157578,147.28,147.27,6.7869]
[1749192808915,5.94041714,147.28,147.27,6.7869]
[1749192809217,3.09672363,147.28,147.27,6.7869]
[1749192809411,10.70487231,147.28,147.27,6.7869]
[1749192809612,7.86132987,147.28,147.27,6.7869]
[1749192809812,7.86271679,147.28,147.27,6.7869]
[1749192810212,3.09672363,147.28,147.27,6.7869]
[1749192810409,7.86271846,147.28,147.27,6.7869]
[1749192810614,5.94029209,147.28,147.27,6.7869]
[1749192810911,10.70626734,147.28,147.27,6.7869]
[1749192811112,5.93705179,147.28,147.27,6.7869]
[1749192811315,3.09672363,147.28,147.27,6.7869]
[1749192811517,10.70280962,147.28,147.27,6.7869]
[1749192811710,3.09672363,147.28,147.27,6.7869]
[1749192813810,0.04823978,147.29,147.28,6.7864]
[1749192828429,10.75610787,147.29,147.26,0.05070882]
[1749192828627,3.09672363,147.27,147.26,0.05070882]
[1749192828833,3.09692837,147.27,147.26,0.05070882]
[1749192829229,10.70932293,147.27,147.26,0.05070882]
[1749192829634,7.61295407,147.27,147.26,0.05070882]
[1749192829935,3.09692837,147.27,147.26,0.05070882]
[1749192830432,5.93967493,147.27,147.26,0.05070882]
[1749192830634,3.09692837,147.27,147.26,0.05070882]
[1749192830834,10.70960451,147.27,147.26,0.05070882]
[1749192831338,7.86692095,147.27,147.26,0.05070882]
[1749192831631,10.70385474,147.27,147.26,0.05070882]
[1749192832129,10.7033884,147.27,147.26,0.05070882]
[1749192833030,7.85897035,147.27,147.26,0.05070882]
[1749192833235,10.68759838,147.27,147.26,0.05070882]
[1749192833432,3.09692837,147.27,147.26,0.05070882]
[1749192834133,7.84687029,147.27,147.26,0.05070882]
[1749192834333,10.68758642,147.27,147.26,0.05070882]
[1749192835040,7.84641473,147.27,147.26,0.05070882]
[1749192835428,3.09692837,147.27,147.26,0.05070882]
[1749192835739,7.84641238,147.27,147.26,0.05070882]
[1749192835938,3.09692837,147.27,147.26,0.05070882]
[1749192836237,7.84750264,147.27,147.26,0.05070882]
[1749192836836,3.09692837,147.27,147.26,0.05070882]
[1749192837138,7.85297616,147.27,147.26,0.05070882]
[1749192837439,7.85297617,147.27,147.26,0.05070882]
[1749192838237,7.85409896,147.27,147.26,0.05070882]
[1749192838938,3.09692837,147.27,147.26,0.05070882]
[1749192839447,7.85410082,147.27,147.26,0.05070882]
[1749192840440,7.85421803,147.27,147.26,0.05070882]
[1749192840642,7.85422314,147.27,147.26,0.05070882]
[1749192841042,3.09692837,147.27,147.26,0.05070882]
[1749192841232,3.09692837,147.28,147.26,0.05070882]
[1749192841838,3.09692837,147.28,147.26,6.83770882]
[1749192842437,3.09692837,147.28,147.26,0.05070882]
[1749192842732,3.09692837,147.27,147.26,0.05070882]
[1749192843334,7.84909697,147.27,147.22,33.76]
[1749192843541,33.78,147.31,147.22,33.76]
[1749192843542,3.09692837,147.25,147.22,33.76]
[1749192843842,3.09692837,147.25,147.23,6.7884]
[1749192844342,3.14580413,147.25,147.23,6.83631278]
[1749192844534,9.93370413,147.25,147.23,0.04791278]
[1749192844735,3.09692837,147.24,147.23,0.04791278]
[1749192845147,6.83677576,147.25,147.23,0.04791278]
[1749192845345,3.09692837,147.24,147.23,0.04791278]
[1749192846334,3.09692837,147.24,147.23,6.83661278]
[1749192847244,3.09692837,147.24,147.23,0.04791278]
[1749192848345,6.83677576,147.25,147.23,0.04791278]
[1749192848346,3.14580413,147.25,147.23,0.04791278]
[1749192848851,0.04887576,147.25,147.23,0.04791278]
[1749192849150,0.04887576,147.25,147.24,6.7883]
[1749192857659,3.14580413,147.25,147.23,6.83641278]
[1749192857861,3.14580413,147.25,147.23,0.04791278]
[1749192858462,3.14580413,147.25,147.23,6.83641278]
[1749192858959,0.04887576,147.25,147.23,6.83641278]
[1749192860357,0.04887576,147.25,147.24,6.7883]
[1749192867763,0.04887576,147.25,147.24,9.88522837]
[1749192868666,2.2617,147.32,147.24,3.09692837]
[1749192868857,7.57960654,147.3,147.27,3.09692837]
[1749192869057,4.73785638,147.29,147.27,3.09692837]
[1749192869259,4.73785638,147.29,147.26,33.76]
[1749192869260,5.35862837,147.32,147.29,6.7857]
[1749192869465,7.57965275,147.31,147.29,6.7857]
[1749192869761,7.57965275,147.3,147.29,6.83130198]
[1749192869962,7.58056119,147.3,147.29,0.04560198]
[1749192870167,3.14825238,147.31,147.29,0.04560198]
[1749192870367,2.84201931,147.3,147.29,0.04560198]
[1749192870563,7.58128982,147.3,147.29,0.04560198]
[1749192870768,2.84206071,147.3,147.29,0.04560198]
[1749192870971,2.84204406,147.3,147.29,0.04560198]
[1749192871164,7.58741323,147.3,147.29,0.04560198]
[1749192871366,3.14825238,147.31,147.29,0.04560198]
[1749192871760,9.93335238,147.31,147.29,0.04560198]
[1749192872369,0.05132401,147.31,147.29,3.14253035]
[1749192873373,0.05132401,147.31,147.29,9.92833035]
[1749192874168,0.05132401,147.31,147.29,6.83140198]
[1749192878271,0.05132401,147.31,147.29,9.92833035]
[1749192881575,0.05132401,147.31,147.3,9.88242837]
[1749192881774,16.50273168,147.35,147.3,3.09692837]
[1749192881978,2.84475855,147.34,147.32,3.09692837]
[1749192882179,4.75075591,147.33,147.32,9.88152837]
[1749192882481,4.75075578,147.33,147.32,3.09692837]
[1749192882676,0.04288529,147.34,147.32,3.09692837]
[1749192882975,0.04288529,147.34,147.33,3.09692837]
[1749192883774,0.04288529,147.34,147.33,9.88102837]
[1749192887283,0.04288529,147.34,147.33,11.61630792]
[1749192890282,0.04288529,147.34,147.31,0.05103475]
[1749192890985,6.82658529,147.34,147.31,0.05103475]
[1749192892580,0.04288529,147.34,147.31,0.05103475]
[1749192893287,6.7846,147.32,147.31,0.05103475]
[1749192900583,11.5257904,147.32,147.31,0.05103475]
[1749192900890,11.52580312,147.32,147.31,0.05103475]
[1749192901083,6.7858,147.3,147.27,33.74]
[1749192901284,6.7858,147.3,147.26,6.7872]
[1749192901686,6.786,147.29,147.26,6.7872]
[1749192901886,6.786,147.29,147.25,11.2754]
[1749192902080,0.0509243,147.28,147.26,0.04416893]
[1749192903492,6.8374243,147.28,147.26,0.04416893]
[1749192904095,0.0509243,147.28,147.26,0.04416893]
[1749192904990,0.0509243,147.28,147.26,6.83146893]
[1749192906394,0.0509243,147.28,147.26,0.04416893]
[1749192907286,11.61910792,147.27,147.26,0.04416893]
[1749192908089,16.33565804,147.27,147.26,0.04416893]
[1749192908293,9.54875804,147.27,147.22,6.789]
[1749192908999,4.83220792,147.27,147.22,6.789]
[1749192909196,4.83220792,147.27,147.23,0.05088637]
[1749192910002,6.7883,147.24,147.23,0.05088637]
[1749192910697,0.04873444,147.25,147.23,0.05088637]
[1749192911802,4.88094236,147.25,147.23,0.05088637]
[1749192912804,6.7883,147.24,147.23,0.05088637]